[Event "Titled Tuesday Blitz February 22 Late 2022"]
[White "Yordanov, Nikolay Plamenov"]
[Black "Yuan, Qingyu"]
[WhiteFideId "2907445"]
[BlackFideId "8609772"]
[WhiteElo "2248"]
[BlackElo "2359"]
[Result "0-1"]
[Round "07"]
[TimeControl "180+1"]
[Date "2022.02.22"]
[WhiteClock "0:00:08"]
[BlackClock "0:00:33"]

1. d4 {[%clk 0:03:00]}  d5 {[%clk 0:03:00]} 2. Bf4 {[%clk 0:03:00]}  Nf6 {[%clk 0:03:00]} 3. e3 {[%clk 0:03:01]}  e6 {[%clk 0:03:00]} 4. Nf3 {[%clk 0:03:01]}  Bd6 {[%clk 0:03:01]} 5. Bg3 {[%clk 0:03:01]}  O-O {[%clk 0:03:00]} 6. Nbd2 {[%clk 0:03:01]}  c5 {[%clk 0:03:01]} 7. c3 {[%clk 0:03:01]}  Qc7 {[%clk 0:03:00]} 8. Bd3 {[%clk 0:03:01]}  Nbd7 {[%clk 0:03:00]} 9. O-O {[%clk 0:03:01]}  Bxg3 {[%clk 0:03:01]} 10. hxg3 {[%clk 0:03:01]}  e5 {[%clk 0:03:01]} 11. dxe5 {[%clk 0:03:02]}  Nxe5 {[%clk 0:03:02]} 12. Nxe5 {[%clk 0:03:03]}  Qxe5 {[%clk 0:03:03]} 13. Nf3 {[%clk 0:03:04]}  Qe7 {[%clk 0:02:59]} 14. Qa4 {[%clk 0:03:03]}  Bg4 {[%clk 0:02:56]} 15. Qf4 {[%clk 0:03:02]}  h6 {[%clk 0:02:52]} 16. Bf5 {[%clk 0:02:59]}  Bxf5 {[%clk 0:02:51]} 17. Qxf5 {[%clk 0:03:00]}  Rad8 {[%clk 0:02:51]} 18. Rfd1 {[%clk 0:02:47]}  Rd6 {[%clk 0:02:51]} 19. Ne5 {[%clk 0:02:25]}  Rfd8 {[%clk 0:02:49]} 20. Ng4 {[%clk 0:02:24]}  Ne4 {[%clk 0:02:46]} 21. Qf4 {[%clk 0:02:08]}  h5 {[%clk 0:02:41]} 22. f3 {[%clk 0:01:51]}  g5 {[%clk 0:02:23]} 23. Qe5 {[%clk 0:01:37]}  Re6 {[%clk 0:02:22]} 24. Nh6+ {[%clk 0:01:17]}  Kh7 {[%clk 0:02:12]} 25. Qf5+ {[%clk 0:01:17]}  Kxh6 {[%clk 0:02:10]} 26. fxe4 {[%clk 0:01:15]}  Rf6 {[%clk 0:02:06]} 27. Qh3 {[%clk 0:01:15]}  Qxe4 {[%clk 0:02:06]} 28. Rf1 {[%clk 0:01:08]}  Qxe3+ {[%clk 0:02:03]} 29. Kh2 {[%clk 0:01:08]}  Qe5 {[%clk 0:01:36]} 30. Rae1 {[%clk 0:01:01]}  Qd6 {[%clk 0:01:36]} 31. Rf5 {[%clk 0:00:44]}  d4 {[%clk 0:01:22]} 32. cxd4 {[%clk 0:00:42]}  cxd4 {[%clk 0:01:21]} 33. Ref1 {[%clk 0:00:36]}  Rxf5 {[%clk 0:01:19]} 34. Qxf5 {[%clk 0:00:36]}  Qg6 {[%clk 0:01:08]} 35. Qe5 {[%clk 0:00:30]}  d3 {[%clk 0:01:04]} 36. Rf6 {[%clk 0:00:20]}  d2 {[%clk 0:01:04]} 37. Rf1 {[%clk 0:00:06]}  h4 {[%clk 0:00:51]} 38. gxh4 {[%clk 0:00:05]}  gxh4 {[%clk 0:00:45]} 39. Qf4+ {[%clk 0:00:04]}  Kg7 {[%clk 0:00:40]} 40. Rd1 {[%clk 0:00:04]}  Qd6 {[%clk 0:00:38]} 41. Qxd6 {[%clk 0:00:03]}  Rxd6 {[%clk 0:00:39]} 42. Kh3 {[%clk 0:00:04]}  Rd4 {[%clk 0:00:39]} 43. g3 {[%clk 0:00:03]}  hxg3 {[%clk 0:00:39]} 44. Kxg3 {[%clk 0:00:04]}  Kg6 {[%clk 0:00:39]} 45. Kf3 {[%clk 0:00:05]}  Kg5 {[%clk 0:00:40]} 46. Ke3 {[%clk 0:00:05]}  Rd8 {[%clk 0:00:40]} 47. Ke2 {[%clk 0:00:06]}  Re8+ {[%clk 0:00:36]} 48. Kf2 {[%clk 0:00:05]}  Rd8 {[%clk 0:00:35]} 49. Ke2 {[%clk 0:00:06]}  Kf4 {[%clk 0:00:32]} 50. Rf1+ {[%clk 0:00:06]}  Ke4 {[%clk 0:00:32]} 51. Rd1 {[%clk 0:00:06]}  f5 {[%clk 0:00:32]} 52. Rxd2 {[%clk 0:00:07]}  Rxd2+ {[%clk 0:00:32]} 53. Kxd2 {[%clk 0:00:08]}  Kf3 {[%clk 0:00:33]} 54. Ke1 {[%clk 0:00:08]}  Kg2 {[%clk 0:00:33]} 55. Ke2 {[%clk 0:00:08]}  f4 {[%clk 0:00:33]} 0-1


[Site "https://www.chess.com"]

[Event "Titled Tuesday Blitz February 22 Late 2022"]
[White "Zhou, Qiyu"]
[Black "Aukhatov, Roman"]
[WhiteFideId "505161"]
[BlackFideId "44150768"]
[WhiteElo "1925"]
[BlackElo "2112"]
[Result "0-1"]
[Round "07"]
[TimeControl "180+1"]
[Date "2022.02.23"]
[WhiteClock "0:00:02"]
[BlackClock "0:00:17"]

1. e4 {[%clk 0:03:00]}  c5 {[%clk 0:02:59]} 2. Nf3 {[%clk 0:02:59]}  e6 {[%clk 0:02:58]} 3. d4 {[%clk 0:03:00]}  cxd4 {[%clk 0:02:59]} 4. Nxd4 {[%clk 0:03:01]}  a6 {[%clk 0:03:00]} 5. c4 {[%clk 0:03:01]}  Qc7 {[%clk 0:02:58]} 6. Nc3 {[%clk 0:03:01]}  b6 {[%clk 0:02:58]} 7. Bd3 {[%clk 0:02:58]}  Bb7 {[%clk 0:02:59]} 8. Be3 {[%clk 0:02:58]}  Nf6 {[%clk 0:02:59]} 9. f3 {[%clk 0:02:53]}  Be7 {[%clk 0:02:58]} 10. O-O {[%clk 0:02:51]}  O-O {[%clk 0:02:58]} 11. Rc1 {[%clk 0:02:45]}  d6 {[%clk 0:02:57]} 12. Qe2 {[%clk 0:02:42]}  Nbd7 {[%clk 0:02:58]} 13. Rfd1 {[%clk 0:02:41]}  Rac8 {[%clk 0:02:58]} 14. b3 {[%clk 0:02:28]}  Qb8 {[%clk 0:02:56]} 15. Qf2 {[%clk 0:02:26]}  Rfe8 {[%clk 0:02:55]} 16. Nde2 {[%clk 0:02:13]}  Bd8 {[%clk 0:02:55]} 17. Na4 {[%clk 0:02:13]}  Bc6 {[%clk 0:02:50]} 18. Nb2 {[%clk 0:02:06]}  Bc7 {[%clk 0:02:47]} 19. g3 {[%clk 0:01:56]}  h5 {[%clk 0:02:46]} 20. Bg5 {[%clk 0:01:17]}  Ba8 {[%clk 0:02:39]} 21. Nd4 {[%clk 0:01:06]}  e5 {[%clk 0:02:27]} 22. Nf5 {[%clk 0:01:06]}  b5 {[%clk 0:02:26]} 23. Be3 {[%clk 0:01:02]}  Nc5 {[%clk 0:02:14]} 24. Bf1 {[%clk 0:00:54]}  Ne6 {[%clk 0:02:09]} 25. Rd3 {[%clk 0:00:36]}  bxc4 {[%clk 0:02:03]} 26. Nxc4 {[%clk 0:00:37]}  d5 {[%clk 0:02:03]} 27. Ba7 {[%clk 0:00:29]}  Qb4 {[%clk 0:01:46]} 28. a3 {[%clk 0:00:24]}  Qf8 {[%clk 0:01:45]} 29. exd5 {[%clk 0:00:20]}  Bxd5 {[%clk 0:01:34]} 30. Nce3 {[%clk 0:00:18]}  Bb7 {[%clk 0:01:26]} 31. Rdc3 {[%clk 0:00:17]}  e4 {[%clk 0:01:23]} 32. f4 {[%clk 0:00:14]}  g6 {[%clk 0:01:17]} 33. Nd4 {[%clk 0:00:13]}  Nxd4 {[%clk 0:01:11]} 34. Bxd4 {[%clk 0:00:14]}  Nd5 {[%clk 0:00:56]} 35. Nxd5 {[%clk 0:00:14]}  Bxd5 {[%clk 0:00:56]} 36. Rxc7 {[%clk 0:00:14]}  Rxc7 {[%clk 0:00:55]} 37. Rxc7 {[%clk 0:00:15]}  e3 {[%clk 0:00:53]} 38. Bxe3 {[%clk 0:00:12]}  Qd6 {[%clk 0:00:52]} 39. Rc1 {[%clk 0:00:07]}  Qe6 {[%clk 0:00:51]} 40. Re1 {[%clk 0:00:03]}  Rc8 {[%clk 0:00:36]} 41. Bd4 {[%clk 0:00:02]}  Qg4 {[%clk 0:00:27]} 42. Qe3 {[%clk 0:00:02]}  f6 {[%clk 0:00:17]} 0-1


[Site "https://www.chess.com"]

[Event "Titled Tuesday Blitz February 22 Late 2022"]
[White "volunteers1998"]
[Black "Lopez Perdomo, Juan David"]
[BlackFideId "4405137"]
[WhiteElo "2261"]
[BlackElo "1997"]
[Result "1-0"]
[Round "07"]
[TimeControl "180+1"]
[Date "2022.02.23"]
[WhiteClock "0:00:52"]
[BlackClock "0:00:01"]

1. e4 {[%clk 0:02:59]}  e6 {[%clk 0:02:59]} 2. Nf3 {[%clk 0:02:59]}  d5 {[%clk 0:02:43]} 3. Nc3 {[%clk 0:02:58]}  Nf6 {[%clk 0:02:43]} 4. e5 {[%clk 0:02:56]}  Nfd7 {[%clk 0:02:42]} 5. d4 {[%clk 0:02:55]}  c5 {[%clk 0:02:43]} 6. dxc5 {[%clk 0:02:53]}  Nc6 {[%clk 0:02:44]} 7. Bf4 {[%clk 0:02:51]}  Bxc5 {[%clk 0:02:35]} 8. Bd3 {[%clk 0:02:50]}  a6 {[%clk 0:02:33]} 9. O-O {[%clk 0:02:48]}  b5 {[%clk 0:02:33]} 10. Ne2 {[%clk 0:02:41]}  Qc7 {[%clk 0:01:45]} 11. c3 {[%clk 0:02:38]}  Ncxe5 {[%clk 0:01:32]} 12. Nxe5 {[%clk 0:02:38]}  Nxe5 {[%clk 0:01:32]} 13. Nd4 {[%clk 0:02:35]}  Bd6 {[%clk 0:01:30]} 14. Re1 {[%clk 0:02:22]}  Nxd3 {[%clk 0:01:23]} 15. Bxd6 {[%clk 0:02:22]}  Qxd6 {[%clk 0:01:15]} 16. Qxd3 {[%clk 0:02:23]}  O-O {[%clk 0:01:14]} 17. b4 {[%clk 0:02:19]}  e5 {[%clk 0:01:08]} 18. Nb3 {[%clk 0:02:17]}  Bb7 {[%clk 0:01:01]} 19. Nc5 {[%clk 0:02:12]}  Bc6 {[%clk 0:01:01]} 20. Re3 {[%clk 0:02:00]}  a5 {[%clk 0:01:00]} 21. Rh3 {[%clk 0:01:49]}  f5 {[%clk 0:00:57]} 22. a3 {[%clk 0:01:43]}  axb4 {[%clk 0:00:52]} 23. cxb4 {[%clk 0:01:43]}  d4 {[%clk 0:00:46]} 24. Rd1 {[%clk 0:01:41]}  Qd5 {[%clk 0:00:44]} 25. f3 {[%clk 0:01:33]}  Rf6 {[%clk 0:00:38]} 26. Kf2 {[%clk 0:01:21]}  Rd8 {[%clk 0:00:34]} 27. Qc2 {[%clk 0:01:14]}  e4 {[%clk 0:00:32]} 28. Qb3 {[%clk 0:01:10]}  e3+ {[%clk 0:00:18]} 29. Ke2 {[%clk 0:01:04]}  Qc4+ {[%clk 0:00:10]} 30. Rd3 {[%clk 0:01:04]}  Be4 {[%clk 0:00:09]} 31. fxe4 {[%clk 0:01:00]}  fxe4 {[%clk 0:00:09]} 32. Nxe4 {[%clk 0:00:57]}  Rf2+ {[%clk 0:00:03]} 33. Nxf2 {[%clk 0:00:56]}  exf2 {[%clk 0:00:02]} 34. Kxf2 {[%clk 0:00:54]}  Rf8+ {[%clk 0:00:01]} 35. Rhf3 {[%clk 0:00:52]} 1-0


[Site "https://www.chess.com"]

[Event "Titled Tuesday Blitz February 22 Late 2022"]
[White "Antonio, Jorge Carlos"]
[Black "Jimenez Almeida, Luis David"]
[WhiteFideId "113190"]
[BlackFideId "22242244"]
[WhiteElo "2247"]
[BlackElo "2092"]
[Result "0-1"]
[Round "08"]
[TimeControl "180+1"]
[Date "2022.02.23"]
[WhiteClock "0:01:17"]
[BlackClock "0:00:52"]

1. d4 {[%clk 0:03:00]}  Nf6 {[%clk 0:02:58]} 2. Nf3 {[%clk 0:03:00]}  g6 {[%clk 0:02:55]} 3. c4 {[%clk 0:03:00]}  Bg7 {[%clk 0:02:53]} 4. Nc3 {[%clk 0:03:00]}  O-O {[%clk 0:02:53]} 5. e4 {[%clk 0:03:00]}  d6 {[%clk 0:02:53]} 6. Be2 {[%clk 0:03:00]}  e5 {[%clk 0:02:51]} 7. O-O {[%clk 0:02:59]}  Nc6 {[%clk 0:02:51]} 8. d5 {[%clk 0:02:59]}  Ne7 {[%clk 0:02:51]} 9. Ne1 {[%clk 0:02:59]}  Nd7 {[%clk 0:02:50]} 10. Be3 {[%clk 0:02:57]}  f5 {[%clk 0:02:50]} 11. f3 {[%clk 0:02:57]}  f4 {[%clk 0:02:50]} 12. Bf2 {[%clk 0:02:57]}  g5 {[%clk 0:02:51]} 13. Rc1 {[%clk 0:02:57]}  Nf6 {[%clk 0:02:41]} 14. c5 {[%clk 0:02:57]}  h5 {[%clk 0:02:37]} 15. cxd6 {[%clk 0:02:56]}  cxd6 {[%clk 0:02:37]} 16. Nb5 {[%clk 0:02:56]}  Ne8 {[%clk 0:02:11]} 17. Qc2 {[%clk 0:02:55]}  g4 {[%clk 0:01:45]} 18. Nc7 {[%clk 0:02:48]}  g3 {[%clk 0:01:44]} 19. hxg3 {[%clk 0:02:46]}  fxg3 {[%clk 0:01:44]} 20. Bxg3 {[%clk 0:02:46]}  Rb8 {[%clk 0:01:37]} 21. Ne6 {[%clk 0:02:40]}  Bxe6 {[%clk 0:01:36]} 22. dxe6 {[%clk 0:02:40]}  Ng6 {[%clk 0:01:30]} 23. Bc4 {[%clk 0:02:25]}  Kh7 {[%clk 0:01:26]} 24. e7 {[%clk 0:02:22]}  Qxe7 {[%clk 0:01:25]} 25. Bd5 {[%clk 0:02:22]}  Qg5 {[%clk 0:01:25]} 26. Bh2 {[%clk 0:02:18]}  Nf6 {[%clk 0:01:18]} 27. Nd3 {[%clk 0:02:14]}  Nh4 {[%clk 0:01:15]} 28. Qf2 {[%clk 0:02:07]}  Nxd5 {[%clk 0:01:11]} 29. exd5 {[%clk 0:02:06]}  e4 {[%clk 0:01:11]} 30. f4 {[%clk 0:02:00]}  Qg4 {[%clk 0:01:06]} 31. Ne1 {[%clk 0:01:46]}  Nf5 {[%clk 0:00:57]} 32. Rc7 {[%clk 0:01:38]}  Kh6 {[%clk 0:00:55]} 33. Qxa7 {[%clk 0:01:23]}  Bd4+ {[%clk 0:00:52]} 34. Qxd4 {[%clk 0:01:17]}  Nxd4 {[%clk 0:00:52]} 0-1


[Site "https://www.chess.com"]

[Event "Titled Tuesday Blitz February 22 Late 2022"]
[White "Aradhya, Garg"]
[Black "Sarkar, Justin"]
[WhiteFideId "25006746"]
[BlackFideId "2010011"]
[WhiteElo "2169"]
[BlackElo "2038"]
[Result "1-0"]
[Round "08"]
[TimeControl "180+1"]
[Date "2022.02.23"]
[WhiteClock "0:02:21"]
[BlackClock "0:00:02"]

1. d4 {[%clk 0:03:00]}  Nf6 {[%clk 0:02:53]} 2. c4 {[%clk 0:03:01]}  e6 {[%clk 0:02:51]} 3. Nf3 {[%clk 0:03:00]}  b6 {[%clk 0:02:50]} 4. a3 {[%clk 0:02:59]}  Bb7 {[%clk 0:02:46]} 5. Nc3 {[%clk 0:02:59]}  d5 {[%clk 0:02:45]} 6. cxd5 {[%clk 0:03:00]}  Nxd5 {[%clk 0:02:44]} 7. Qc2 {[%clk 0:02:58]}  Be7 {[%clk 0:02:38]} 8. e4 {[%clk 0:02:56]}  Nxc3 {[%clk 0:02:36]} 9. bxc3 {[%clk 0:02:55]}  O-O {[%clk 0:02:33]} 10. Bd3 {[%clk 0:02:55]}  c5 {[%clk 0:02:31]} 11. O-O {[%clk 0:02:54]}  Nc6 {[%clk 0:02:16]} 12. d5 {[%clk 0:02:53]}  exd5 {[%clk 0:02:09]} 13. exd5 {[%clk 0:02:54]}  Qxd5 {[%clk 0:02:07]} 14. Bxh7+ {[%clk 0:02:55]}  Kh8 {[%clk 0:02:07]} 15. Be4 {[%clk 0:02:55]}  Qd7 {[%clk 0:01:53]} 16. Rd1 {[%clk 0:02:52]}  Qc7 {[%clk 0:01:48]} 17. Ng5 {[%clk 0:02:44]}  Bxg5 {[%clk 0:01:14]} 18. Bxg5 {[%clk 0:02:42]}  f6 {[%clk 0:01:06]} 19. Bh4 {[%clk 0:02:40]}  Ne5 {[%clk 0:01:01]} 20. Bg3 {[%clk 0:02:40]}  Bxe4 {[%clk 0:00:48]} 21. Qxe4 {[%clk 0:02:41]}  Qc6 {[%clk 0:00:46]} 22. Rd5 {[%clk 0:02:39]}  Rae8 {[%clk 0:00:07]} 23. Rad1 {[%clk 0:02:37]}  Kg8 {[%clk 0:00:04]} 24. h4 {[%clk 0:02:29]}  Nf7 {[%clk 0:00:03]} 25. Qg6 {[%clk 0:02:25]}  Ne5 {[%clk 0:00:02]} 26. Bxe5 {[%clk 0:02:21]} 1-0


[Site "https://www.chess.com"]

[Event "Titled Tuesday Blitz February 22 Late 2022"]
[White "Ardila, Oscar Humberto"]
[Black "Toncheva, Nadya"]
[WhiteFideId "4404742"]
[BlackFideId "2924056"]
[WhiteElo "1898"]
[BlackElo "1920"]
[Result "0-1"]
[Round "08"]
[TimeControl "180+1"]
[Date "2022.02.23"]
[WhiteClock "0:00:03"]
[BlackClock "0:00:23"]

1. d4 {[%clk 0:03:00]}  Nf6 {[%clk 0:02:59]} 2. c4 {[%clk 0:03:00]}  e6 {[%clk 0:03:00]} 3. Nc3 {[%clk 0:03:00]}  c5 {[%clk 0:03:00]} 4. d5 {[%clk 0:02:59]}  exd5 {[%clk 0:03:01]} 5. cxd5 {[%clk 0:02:59]}  d6 {[%clk 0:03:00]} 6. e4 {[%clk 0:02:59]}  g6 {[%clk 0:02:59]} 7. h3 {[%clk 0:02:57]}  Bg7 {[%clk 0:02:59]} 8. Nf3 {[%clk 0:02:57]}  O-O {[%clk 0:02:59]} 9. Bd3 {[%clk 0:02:56]}  Re8 {[%clk 0:02:59]} 10. O-O {[%clk 0:02:56]}  c4 {[%clk 0:02:59]} 11. Bc2 {[%clk 0:02:56]}  b5 {[%clk 0:02:59]} 12. a3 {[%clk 0:02:53]}  a6 {[%clk 0:02:58]} 13. Bf4 {[%clk 0:02:52]}  Qc7 {[%clk 0:02:56]} 14. Re1 {[%clk 0:02:50]}  Nbd7 {[%clk 0:02:55]} 15. Qd2 {[%clk 0:02:27]}  Bb7 {[%clk 0:02:53]} 16. Rad1 {[%clk 0:02:27]}  Rad8 {[%clk 0:02:44]} 17. Re2 {[%clk 0:02:02]}  Nc5 {[%clk 0:02:22]} 18. Rde1 {[%clk 0:02:00]}  Re7 {[%clk 0:02:22]} 19. e5 {[%clk 0:01:55]}  dxe5 {[%clk 0:02:22]} 20. Bxe5 {[%clk 0:01:54]}  Qc8 {[%clk 0:02:14]} 21. d6 {[%clk 0:01:50]}  Bxf3 {[%clk 0:02:11]} 22. dxe7 {[%clk 0:01:21]}  Rxd2 {[%clk 0:02:10]} 23. Rxd2 {[%clk 0:01:21]}  Ne8 {[%clk 0:01:31]} 24. Rd8 {[%clk 0:01:16]}  Qc6 {[%clk 0:01:30]} 25. gxf3 {[%clk 0:01:02]}  Ne6 {[%clk 0:00:50]} 26. Be4 {[%clk 0:00:57]}  Nxd8 {[%clk 0:00:39]} 27. exd8=Q {[%clk 0:00:49]}  Qe6 {[%clk 0:00:40]} 28. Bxg7 {[%clk 0:00:44]}  Kxg7 {[%clk 0:00:39]} 29. Qd5 {[%clk 0:00:32]}  Qxh3 {[%clk 0:00:38]} 30. Qe5+ {[%clk 0:00:26]}  Nf6 {[%clk 0:00:38]} 31. Qg3 {[%clk 0:00:25]}  Qe6 {[%clk 0:00:37]} 32. Rd1 {[%clk 0:00:20]}  h5 {[%clk 0:00:37]} 33. Nd5 {[%clk 0:00:19]}  Nxe4 {[%clk 0:00:31]} 34. fxe4 {[%clk 0:00:18]}  Qxe4 {[%clk 0:00:32]} 35. Ne3 {[%clk 0:00:11]}  h4 {[%clk 0:00:32]} 36. Qg2 {[%clk 0:00:11]}  Qf4 {[%clk 0:00:28]} 37. Qd5 {[%clk 0:00:06]}  Kh7 {[%clk 0:00:25]} 38. Qd4 {[%clk 0:00:03]}  Qg5+ {[%clk 0:00:25]} 39. Qg4 {[%clk 0:00:02]}  Qf6 {[%clk 0:00:24]} 40. Kg2 {[%clk 0:00:02]}  Qc6+ {[%clk 0:00:24]} 41. Qf3 {[%clk 0:00:03]}  Qf6 {[%clk 0:00:25]} 42. Rg1 {[%clk 0:00:03]}  h3+ {[%clk 0:00:24]} 43. Kh2 {[%clk 0:00:02]}  Qxf3 {[%clk 0:00:24]} 44. Rg3 {[%clk 0:00:03]}  Qxf2+ {[%clk 0:00:24]} 45. Kxh3 {[%clk 0:00:02]}  Qxb2 {[%clk 0:00:24]} 46. Ng4 {[%clk 0:00:02]}  c3 {[%clk 0:00:24]} 47. Nf6+ {[%clk 0:00:03]}  Kh8 {[%clk 0:00:22]} 48. Ne8 {[%clk 0:00:03]}  c2 {[%clk 0:00:22]} 49. Kg4 {[%clk 0:00:03]}  c1=Q {[%clk 0:00:22]} 50. Rh3+ {[%clk 0:00:03]}  Kg8 {[%clk 0:00:23]} 0-1


[Site "https://www.chess.com"]

[Event "Titled Tuesday Blitz February 22 Late 2022"]
[White "Batsiashvili, Nino"]
[Black "Pinheiro, Iung Alicio de O."]
[WhiteFideId "13602993"]
[BlackFideId "2104350"]
[WhiteElo "2230"]
[BlackElo "2588"]
[Result "0-1"]
[Round "08"]
[TimeControl "180+1"]
[Date "2022.02.23"]
[WhiteClock "0:00:01"]
[BlackClock "0:00:13"]

1. d4 {[%clk 0:03:00]}  Nf6 {[%clk 0:02:58]} 2. c4 {[%clk 0:03:01]}  g6 {[%clk 0:02:58]} 3. Nc3 {[%clk 0:03:01]}  d5 {[%clk 0:02:58]} 4. cxd5 {[%clk 0:03:00]}  Nxd5 {[%clk 0:02:59]} 5. e4 {[%clk 0:02:59]}  Nxc3 {[%clk 0:02:59]} 6. bxc3 {[%clk 0:03:00]}  Bg7 {[%clk 0:02:59]} 7. Nf3 {[%clk 0:02:59]}  c5 {[%clk 0:02:57]} 8. h3 {[%clk 0:02:59]}  O-O {[%clk 0:02:55]} 9. Be2 {[%clk 0:02:55]}  cxd4 {[%clk 0:02:43]} 10. cxd4 {[%clk 0:02:53]}  Nc6 {[%clk 0:02:43]} 11. e5 {[%clk 0:02:36]}  Be6 {[%clk 0:02:30]} 12. O-O {[%clk 0:02:29]}  Bd5 {[%clk 0:02:29]} 13. Be3 {[%clk 0:02:28]}  Qd7 {[%clk 0:02:20]} 14. Nd2 {[%clk 0:02:02]}  f6 {[%clk 0:01:54]} 15. f4 {[%clk 0:02:00]}  Rfd8 {[%clk 0:01:37]} 16. Qb1 {[%clk 0:01:39]}  e6 {[%clk 0:01:23]} 17. Qb2 {[%clk 0:01:28]}  Rac8 {[%clk 0:01:22]} 18. Rac1 {[%clk 0:01:25]}  Qe7 {[%clk 0:01:13]} 19. Bf3 {[%clk 0:01:17]}  Qb4 {[%clk 0:01:08]} 20. Qa1 {[%clk 0:01:01]}  f5 {[%clk 0:01:04]} 21. Rb1 {[%clk 0:00:33]}  Qa3 {[%clk 0:01:02]} 22. Rfe1 {[%clk 0:00:26]}  b6 {[%clk 0:00:59]} 23. Bxd5 {[%clk 0:00:25]}  Rxd5 {[%clk 0:00:58]} 24. Rb3 {[%clk 0:00:22]}  Qa4 {[%clk 0:00:55]} 25. Nf3 {[%clk 0:00:21]}  Ne7 {[%clk 0:00:46]} 26. Rc1 {[%clk 0:00:18]}  Rdd8 {[%clk 0:00:44]} 27. Rbc3 {[%clk 0:00:17]}  Qd7 {[%clk 0:00:44]} 28. Qb2 {[%clk 0:00:14]}  Nd5 {[%clk 0:00:44]} 29. Rxc8 {[%clk 0:00:14]}  Rxc8 {[%clk 0:00:45]} 30. Bd2 {[%clk 0:00:14]}  Bh6 {[%clk 0:00:42]} 31. g3 {[%clk 0:00:13]}  Bf8 {[%clk 0:00:41]} 32. Kf2 {[%clk 0:00:12]}  a6 {[%clk 0:00:35]} 33. g4 {[%clk 0:00:12]}  Rxc1 {[%clk 0:00:21]} 34. Qxc1 {[%clk 0:00:11]}  Qc7 {[%clk 0:00:17]} 35. Qxc7 {[%clk 0:00:07]}  Nxc7 {[%clk 0:00:18]} 36. gxf5 {[%clk 0:00:08]}  gxf5 {[%clk 0:00:18]} 37. Ke3 {[%clk 0:00:08]}  Be7 {[%clk 0:00:18]} 38. Kd3 {[%clk 0:00:08]}  Nd5 {[%clk 0:00:19]} 39. Ne1 {[%clk 0:00:08]}  Kf7 {[%clk 0:00:18]} 40. a4 {[%clk 0:00:07]}  Ke8 {[%clk 0:00:19]} 41. Nc2 {[%clk 0:00:07]}  Kd7 {[%clk 0:00:19]} 42. Kc4 {[%clk 0:00:07]}  Kc6 {[%clk 0:00:19]} 43. Ne1 {[%clk 0:00:06]}  b5+ {[%clk 0:00:19]} 44. axb5+ {[%clk 0:00:07]}  axb5+ {[%clk 0:00:20]} 45. Kd3 {[%clk 0:00:07]}  Bd8 {[%clk 0:00:19]} 46. Nf3 {[%clk 0:00:07]}  Be7 {[%clk 0:00:18]} 47. h4 {[%clk 0:00:06]}  h5 {[%clk 0:00:17]} 48. Ng5 {[%clk 0:00:06]}  Kd7 {[%clk 0:00:16]} 49. Bc1 {[%clk 0:00:04]}  Nb4+ {[%clk 0:00:16]} 50. Ke3 {[%clk 0:00:03]}  Nd5+ {[%clk 0:00:14]} 51. Kd3 {[%clk 0:00:04]}  Bd8 {[%clk 0:00:13]} 52. Bd2 {[%clk 0:00:04]}  Bb6 {[%clk 0:00:12]} 53. Nf3 {[%clk 0:00:03]}  Bd8 {[%clk 0:00:12]} 54. Ng5 {[%clk 0:00:04]}  Bxg5 {[%clk 0:00:13]} 55. fxg5 {[%clk 0:00:03]}  Ne7 {[%clk 0:00:13]} 56. Ke3 {[%clk 0:00:01]}  Kc6 {[%clk 0:00:13]} 0-1


[Site "https://www.chess.com"]

[Event "Titled Tuesday Blitz February 22 Late 2022"]
[White "Briscoe, Chris"]
[Black "Calcada, Lucas Galvan"]
[WhiteFideId "408360"]
[BlackFideId "22746099"]
[WhiteElo "2111"]
[BlackElo "1402"]
[Result "1-0"]
[Round "08"]
[TimeControl "180+1"]
[Date "2022.02.23"]
[WhiteClock "0:00:31"]
[BlackClock "0:00:22"]

1. e4 {[%clk 0:02:55]}  c5 {[%clk 0:02:29]} 2. Nf3 {[%clk 0:02:53]}  d6 {[%clk 0:02:29]} 3. d4 {[%clk 0:02:52]}  cxd4 {[%clk 0:02:30]} 4. Nxd4 {[%clk 0:02:53]}  Nf6 {[%clk 0:02:31]} 5. Nc3 {[%clk 0:02:53]}  a6 {[%clk 0:02:31]} 6. Bg5 {[%clk 0:02:53]}  e6 {[%clk 0:02:31]} 7. f4 {[%clk 0:02:53]}  Qc7 {[%clk 0:02:31]} 8. Bd3 {[%clk 0:02:47]}  Be7 {[%clk 0:02:30]} 9. Qe2 {[%clk 0:02:47]}  Nbd7 {[%clk 0:02:28]} 10. O-O-O {[%clk 0:02:46]}  b5 {[%clk 0:02:27]} 11. Rhe1 {[%clk 0:02:41]}  Bb7 {[%clk 0:02:20]} 12. e5 {[%clk 0:02:39]}  dxe5 {[%clk 0:02:18]} 13. fxe5 {[%clk 0:02:39]}  Nd5 {[%clk 0:02:19]} 14. Ne4 {[%clk 0:02:33]}  Qxe5 {[%clk 0:02:01]} 15. Bxe7 {[%clk 0:02:21]}  Nxe7 {[%clk 0:01:56]} 16. Nxb5 {[%clk 0:02:11]}  Qf4+ {[%clk 0:01:47]} 17. Kb1 {[%clk 0:02:09]}  O-O {[%clk 0:01:44]} 18. Nbd6 {[%clk 0:02:01]}  Rab8 {[%clk 0:01:36]} 19. Rf1 {[%clk 0:01:54]}  Qe5 {[%clk 0:01:34]} 20. Nc4 {[%clk 0:01:34]}  Qc7 {[%clk 0:01:23]} 21. Ng5 {[%clk 0:01:29]}  h6 {[%clk 0:00:56]} 22. Nxe6 {[%clk 0:01:27]}  fxe6 {[%clk 0:00:46]} 23. Qxe6+ {[%clk 0:01:28]}  Kh8 {[%clk 0:00:46]} 24. Qxe7 {[%clk 0:01:23]}  Bd5 {[%clk 0:00:46]} 25. Rxf8+ {[%clk 0:01:15]}  Rxf8 {[%clk 0:00:32]} 26. Ne3 {[%clk 0:01:10]}  Bg8 {[%clk 0:00:26]} 27. Be2 {[%clk 0:00:51]}  Qa5 {[%clk 0:00:22]} 28. Nc4 {[%clk 0:00:31]} 1-0


[Site "https://www.chess.com"]